fUSD/lending_fUSD_20260503
["ID","MTS","AMOUNT","RATE_DAILY","PERIOD"]
[421488405,1777753887000,-4574.26,0.00032602,2]
[421488409,1777753887000,-391.03924872,0.00032602,2]
[421488395,1777753887000,-500.0,0.00032602,2]
[421488367,1777753887000,-500.0,0.00032602,2]
[421488387,1777753887000,-500.0,0.00032602,2]
[421488430,1777753887000,-1000.15815992,0.00032603,7]
[421488365,1777753887000,-500.0,0.00032602,2]
[421488368,1777753887000,-790.13,0.00032602,2]
[421488366,1777753887000,-502.28,0.00032602,2]
[421488369,1777753887000,-500.0,0.00032602,2]
[421488370,1777753887000,-180.19038334,0.00032602,2]
[421488371,1777753887000,-500.0,0.00032602,2]
[421488372,1777753887000,-965.9,0.00032602,2]
[421488381,1777753887000,-756.97,0.00032602,2]
[421488374,1777753887000,-576.28,0.00032602,2]
[421488373,1777753887000,-525.77,0.00032602,2]
[421488378,1777753887000,-521.04,0.00032602,2]
[421488375,1777753887000,-1219.94,0.00032602,2]
[421488376,1777753887000,-500.0,0.00032602,2]
[421488377,1777753887000,-500.0,0.00032602,2]
[421488380,1777753887000,-500.0,0.00032602,2]
[421488379,1777753887000,-369.64995193,0.00032602,2]
[421488385,1777753887000,-500.0,0.00032602,2]
[421488382,1777753887000,-500.0,0.00032602,2]
[421488393,1777753887000,-526.44,0.00032602,2]
[421488392,1777753887000,-500.0,0.00032602,2]
[421488390,1777753887000,-500.0,0.00032602,2]
[421488391,1777753887000,-691.26,0.00032602,2]
[421488386,1777753887000,-500.0,0.00032602,2]
[421488389,1777753887000,-500.0,0.00032602,2]
[421488384,1777753887000,-2470.13,0.00032602,2]
[421488388,1777753887000,-500.0,0.00032602,2]
[421488383,1777753887000,-885.9,0.00032602,2]
[421488420,1777753887000,-3095.72,0.00032602,2]
[421488467,1777753887000,-417.17394994,0.00032657,2]
[421488422,1777753887000,-1479.18,0.00032602,2]
[421488457,1777753887000,-501.89,0.00032657,2]
[421488461,1777753887000,-500.0,0.00032657,2]
[421488459,1777753887000,-482.87373413,0.00032657,2]
[421488460,1777753887000,-500.0,0.00032657,2]
[421488469,1777753887000,-572.03,0.00032657,2]
[421488464,1777753887000,-424.96607145,0.00032657,2]
[421488465,1777753887000,-500.0,0.00032657,2]
[421488462,1777753887000,-476.75030637,0.00032657,2]
[421488463,1777753887000,-556.075423,0.00032657,2]
[421488466,1777753887000,-654.72,0.00032657,2]
[421488458,1777753887000,-500.0,0.00032657,2]
[421488468,1777753887000,-356.92084351,0.00032657,2]
[421488471,1777753887000,-502.28,0.00032657,2]
[421488482,1777753887000,-521.04,0.00032657,2]
[421488483,1777753887000,-186.74016484,0.00032657,2]
[421488481,1777753887000,-500.0,0.00032657,2]
[421488470,1777753887000,-500.0,0.00032657,2]
[421488472,1777753887000,-633.63963892,0.00032657,2]
[421488473,1777753887000,-790.13,0.00032657,2]
[421488476,1777753887000,-965.9,0.00032657,2]
[421488474,1777753887000,-500.0,0.00032657,2]
[421488477,1777753887000,-525.77,0.00032657,2]
[421488480,1777753887000,-284.61962368,0.00032657,2]
[421488479,1777753887000,-1219.94,0.00032657,2]
[421488478,1777753887000,-576.28,0.00032657,2]
[421488475,1777753887000,-500.0,0.00032657,2]
[421488427,1777753887000,-1000.15815992,0.00032603,7]
[421488452,1777753887000,-500.1,0.00032618,2]
[421488453,1777753887000,-500.1,0.00032618,2]
[421488484,1777753887000,-756.97,0.00032657,2]
[421488447,1777753887000,-519.87060302,0.00032603,5]
[421488450,1777753887000,-500.1,0.00032618,2]
[421488425,1777753887000,-500.0,0.00032602,2]
[421488423,1777753887000,-467.26865089,0.00032602,2]
[421488421,1777753887000,-500.0,0.00032602,2]
[421488428,1777753887000,-1000.15815992,0.00032603,7]
[421488431,1777753887000,-1000.15815992,0.00032603,7]
[421488436,1777753887000,-1000.15815991,0.00032603,7]
[421488435,1777753887000,-1000.15815991,0.00032603,7]
[421488438,1777753887000,-1000.15815991,0.00032603,7]
[421488437,1777753887000,-1000.15815991,0.00032603,7]
[421488434,1777753887000,-1000.15815991,0.00032603,7]
[421488439,1777753887000,-1000.15815991,0.00032603,7]
[421488433,1777753887000,-1000.15815991,0.00032603,7]
[421488441,1777753887000,-1000.15815991,0.00032603,7]
[421488429,1777753887000,-1000.15815992,0.00032603,7]
[421488442,1777753887000,-1000.15815991,0.00032603,7]
[421488440,1777753887000,-1000.15815991,0.00032603,7]
[421488451,1777753887000,-500.1,0.00032618,2]
[421488449,1777753887000,-500.1,0.00032618,2]
[421488444,1777753887000,-1000.15815991,0.00032603,7]
[421488446,1777753887000,-1000.15815991,0.00032603,7]
[421488448,1777753887000,-500.1,0.00032618,2]
[421488445,1777753887000,-1000.15815991,0.00032603,7]
[421488455,1777753887000,-500.0,0.00032657,2]
[421488454,1777753887000,-996.66000024,0.00032618,2]
[421488443,1777753887000,-1000.15815991,0.00032603,7]
[421488432,1777753887000,-1000.15815992,0.00032603,7]
[421488456,1777753887000,-792.14,0.00032657,2]
[421488536,1777753888000,-654.72,0.00032712,2]
[421488526,1777753888000,-500.0,0.00032657,2]
[421488535,1777753888000,-500.0,0.00032712,2]
[421488525,1777753888000,-500.0,0.00032657,2]
[421488517,1777753888000,-945.97,0.00032657,2]
[421488520,1777753888000,-1158.38,0.00032657,2]
[421488522,1777753888000,-3095.72,0.00032657,2]
[421488521,1777753888000,-2129.76,0.00032657,2]
[421488519,1777753888000,-357.68171286,0.00032657,2]
[421488524,1777753888000,-1479.18,0.00032657,2]
[421488523,1777753888000,-500.0,0.00032657,2]
[421488518,1777753888000,-500.0,0.00032657,2]
[421488527,1777753888000,-338.78668804,0.00032657,2]
[421488532,1777753888000,-264.85499746,0.00032712,2]
[421488530,1777753888000,-792.14,0.00032712,2]
[421488529,1777753888000,-500.0,0.00032712,2]
[421488531,1777753888000,-501.89,0.00032712,2]
[421488534,1777753888000,-199.70779676,0.00032712,2]
[421488537,1777753888000,-572.03,0.00032712,2]
[421488539,1777753888000,-502.28,0.00032712,2]
[421488538,1777753888000,-447.88289144,0.00032712,2]
[421488541,1777753888000,-500.0,0.00032712,2]
[421488540,1777753888000,-790.13,0.00032712,2]
[421488543,1777753888000,-965.9,0.00032712,2]
[421488542,1777753888000,-500.0,0.00032712,2]
[421488512,1777753888000,-500.0,0.00032657,2]
[421488550,1777753888000,-756.97,0.00032712,2]
[421488528,1777753888000,-8899.97,0.000327,14]
[421488515,1777753888000,-1194.84,0.00032657,2]
[421488508,1777753888000,-4574.26,0.00032657,2]
[421488514,1777753888000,-500.0,0.00032657,2]
[421488546,1777753888000,-576.28,0.00032712,2]
[421488485,1777753888000,-500.0,0.00032657,2]
[421488495,1777753888000,-648.22020424,0.00032657,2]
[421488496,1777753888000,-526.44,0.00032657,2]
[421488490,1777753888000,-500.0,0.00032657,2]
[421488486,1777753888000,-885.9,0.00032657,2]
[421488487,1777753888000,-2470.13,0.00032657,2]
[421488492,1777753888000,-500.0,0.00032657,2]
[421488493,1777753888000,-500.0,0.00032657,2]
[421488491,1777753888000,-500.0,0.00032657,2]
[421488488,1777753888000,-500.0,0.00032657,2]
[421488489,1777753888000,-500.0,0.00032657,2]
[421488494,1777753888000,-691.26,0.00032657,2]
[421488498,1777753888000,-500.0,0.00032657,2]
[421488509,1777753888000,-1220.75,0.00032657,2]
[421488510,1777753888000,-1318.85,0.00032657,2]
[421488497,1777753888000,-556.28,0.00032657,2]
[421488503,1777753888000,-292.39399032,0.00032657,2]
[421488499,1777753888000,-12734.57,0.00032657,2]
[421488501,1777753888000,-742.23,0.00032657,2]
[421488504,1777753888000,-1881.31,0.00032657,2]
[421488505,1777753888000,-500.0,0.00032657,2]
[421488506,1777753888000,-500.0,0.00032657,2]
[421488507,1777753888000,-1268.37,0.00032657,2]
[421488502,1777753888000,-1724.05,0.00032657,2]
[421488511,1777753888000,-18702.6,0.00032657,2]
[421488516,1777753888000,-500.0,0.00032657,2]
[421488513,1777753888000,-283.83585447,0.00032657,2]
[421488547,1777753888000,-1219.94,0.00032712,2]
[421488533,1777753888000,-626.38006778,0.00032712,2]
[421488549,1777753888000,-521.04,0.00032712,2]
[421488584,1777753888000,-438.49270026,0.00032712,2]
[421488583,1777753888000,-3095.72,0.00032712,2]
[421488582,1777753888000,-2129.76,0.00032712,2]
[421488581,1777753888000,-1158.38,0.00032712,2]
[421488586,1777753888000,-500.0,0.00032712,2]
[421488596,1777753888000,-500.0,0.00032767,2]
[421488597,1777753888000,-500.0,0.00032767,2]
[421488589,1777753888000,-792.14,0.00032767,2]
[421488585,1777753888000,-1479.18,0.00032712,2]
[421488587,1777753888000,-500.0,0.00032712,2]
[421488591,1777753888000,-645.91064159,0.00032767,2]
[421488588,1777753888000,-445.67786553,0.00032767,2]
[421488594,1777753888000,-502.28,0.00032767,2]
[421488580,1777753888000,-500.0,0.00032712,2]
[421488592,1777753888000,-654.72,0.00032767,2]
[421488595,1777753888000,-790.13,0.00032767,2]
[421488593,1777753888000,-572.03,0.00032767,2]
[421488598,1777753888000,-965.9,0.00032767,2]
[421488602,1777753888000,-500.0,0.00032767,2]
[421488600,1777753888000,-576.28,0.00032767,2]
[421488603,1777753888000,-521.04,0.00032767,2]
[421488599,1777753888000,-525.77,0.00032767,2]
[421488601,1777753888000,-1219.94,0.00032767,2]
[421488609,1777753888000,-500.0,0.00032767,2]
[421488607,1777753888000,-2470.13,0.00032767,2]
[421488608,1777753888000,-500.0,0.00032767,2]
[421488605,1777753888000,-500.0,0.00032767,2]
[421488545,1777753888000,-525.77,0.00032712,2]
[421488590,1777753888000,-501.89,0.00032767,2]
[421488578,1777753888000,-500.0,0.00032712,2]
[421488604,1777753888000,-756.97,0.00032767,2]
[421488576,1777753888000,-348.14594657,0.00032712,2]
[421488579,1777753888000,-945.97,0.00032712,2]
[421488548,1777753888000,-500.0,0.00032712,2]
[421488552,1777753888000,-885.9,0.00032712,2]
[421488563,1777753888000,-500.0,0.00032712,2]
[421488551,1777753888000,-500.0,0.00032712,2]
[421488560,1777753888000,-691.26,0.00032712,2]
[421488553,1777753888000,-2470.13,0.00032712,2]
[421488554,1777753888000,-320.81508335,0.00032712,2]
[421488556,1777753888000,-500.0,0.00032712,2]
[421488606,1777753888000,-885.9,0.00032767,2]
[421488558,1777753888000,-500.0,0.00032712,2]
[421488557,1777753888000,-500.0,0.00032712,2]
[421488561,1777753888000,-526.44,0.00032712,2]
[421488555,1777753888000,-366.64012124,0.00032712,2]
[421488562,1777753888000,-556.28,0.00032712,2]
[421488565,1777753888000,-742.23,0.00032712,2]
[421488559,1777753888000,-500.0,0.00032712,2]
[421488571,1777753888000,-4574.26,0.00032712,2]
[421488572,1777753888000,-1220.75,0.00032712,2]
[421488567,1777753888000,-1881.31,0.00032712,2]
[421488570,1777753888000,-1268.37,0.00032712,2]
[421488564,1777753888000,-12734.57,0.00032712,2]
[421488574,1777753888000,-18702.6,0.00032712,2]
[421488566,1777753888000,-1724.05,0.00032712,2]
[421488569,1777753888000,-500.0,0.00032712,2]
[421488575,1777753888000,-500.0,0.00032712,2]
[421488577,1777753888000,-1194.84,0.00032712,2]
[421488573,1777753888000,-1318.85,0.00032712,2]
[421488568,1777753888000,-500.0,0.00032712,2]
[421488648,1777753889000,-525.77,0.00032821,2]
[421488642,1777753889000,-572.03,0.00032821,2]
[421488644,1777753889000,-790.13,0.00032821,2]
[421488639,1777753889000,-792.14,0.00032821,2]
[421488641,1777753889000,-654.72,0.00032821,2]
[421488637,1777753889000,-500.0,0.00032767,2]
[421488645,1777753889000,-500.0,0.00032821,2]
[421488647,1777753889000,-965.9,0.00032821,2]
[421488658,1777753889000,-454.68510403,0.00032821,2]
[421488643,1777753889000,-502.28,0.00032821,2]
[421488640,1777753889000,-501.89,0.00032821,2]
[421488655,1777753889000,-885.9,0.00032821,2]
[421488649,1777753889000,-576.28,0.00032821,2]
[421488652,1777753889000,-521.04,0.00032821,2]
[421488657,1777753889000,-500.0,0.00032821,2]
[421488650,1777753889000,-1219.94,0.00032821,2]
[421488654,1777753889000,-500.0,0.00032821,2]
[421488653,1777753889000,-756.97,0.00032821,2]
[421488656,1777753889000,-2470.13,0.00032821,2]
[421488660,1777753889000,-526.44,0.00032821,2]
[421488661,1777753889000,-556.28,0.00032821,2]
[421488664,1777753889000,-1724.05,0.00032821,2]
[421488646,1777753889000,-500.0,0.00032821,2]
[421488670,1777753889000,-1220.75,0.00032821,2]
[421488651,1777753889000,-530.36798115,0.00032821,2]
[421488636,1777753889000,-503.52260249,0.00032767,2]
[421488621,1777753889000,-500.0,0.00032767,2]
[421488638,1777753889000,-31617.17126833,0.000328,7]
[421488663,1777753889000,-742.23,0.00032821,2]
[421488610,1777753889000,-213.39938319,0.00032767,2]
[421488622,1777753889000,-1268.37,0.00032767,2]
[421488612,1777753889000,-691.26,0.00032767,2]
[421488611,1777753889000,-495.25701095,0.00032767,2]
[421488618,1777753889000,-1724.05,0.00032767,2]
[421488617,1777753889000,-742.23,0.00032767,2]
[421488615,1777753889000,-450.89488413,0.00032767,2]
[421488613,1777753889000,-526.44,0.00032767,2]
[421488614,1777753889000,-556.28,0.00032767,2]
[421488616,1777753889000,-12734.57,0.00032767,2]
[421488620,1777753889000,-500.0,0.00032767,2]
[421488619,1777753889000,-1881.31,0.00032767,2]
[421488624,1777753889000,-1220.75,0.00032767,2]
[421488626,1777753889000,-18702.6,0.00032767,2]
[421488623,1777753889000,-4574.26,0.00032767,2]
[421488634,1777753889000,-3095.72,0.00032767,2]
[421488625,1777753889000,-1318.85,0.00032767,2]
[421488627,1777753889000,-500.0,0.00032767,2]
[421488632,1777753889000,-1158.38,0.00032767,2]
[421488630,1777753889000,-945.97,0.00032767,2]
[421488633,1777753889000,-2129.76,0.00032767,2]
[421488628,1777753889000,-1194.84,0.00032767,2]
[421488631,1777753889000,-500.0,0.00032767,2]
[421488629,1777753889000,-557.07275438,0.00032767,2]
[421488635,1777753889000,-1479.18,0.00032767,2]
[421488659,1777753889000,-691.26,0.00032821,2]
[421488671,1777753889000,-1318.85,0.00032821,2]
[421488711,1777753889000,-1268.37,0.00032876,2]
[421488695,1777753889000,-576.28,0.00032876,2]
[421488698,1777753889000,-756.97,0.00032876,2]
[421488697,1777753889000,-521.04,0.00032876,2]
[421488696,1777753889000,-1219.94,0.00032876,2]
[421488700,1777753889000,-885.9,0.00032876,2]
[421488702,1777753889000,-209.88066034,0.00032876,2]
[421488703,1777753889000,-691.26,0.00032876,2]
[421488704,1777753889000,-526.44,0.00032876,2]
[421488705,1777753889000,-556.28,0.00032876,2]
[421488707,1777753889000,-742.23,0.00032876,2]
[421488706,1777753889000,-12734.57,0.00032876,2]
[421488709,1777753889000,-1881.31,0.00032876,2]
[421488708,1777753889000,-1724.05,0.00032876,2]
[421488710,1777753889000,-500.0,0.00032876,2]
[421488712,1777753889000,-4574.26,0.00032876,2]
[421488714,1777753889000,-1318.85,0.00032876,2]
[421488713,1777753889000,-1220.75,0.00032876,2]
[421488717,1777753889000,-1194.84,0.00032876,2]
[421488718,1777753889000,-945.97,0.00032876,2]
[421488715,1777753889000,-18702.6,0.00032876,2]
[421488716,1777753889000,-500.0,0.00032876,2]
[421488719,1777753889000,-500.0,0.00032876,2]
[421488721,1777753889000,-2129.76,0.00032876,2]
[421488720,1777753889000,-1158.38,0.00032876,2]
[421488672,1777753889000,-18702.6,0.00032821,2]
[421488694,1777753889000,-525.77,0.00032876,2]
[421488693,1777753889000,-965.9,0.00032876,2]
[421488699,1777753889000,-500.0,0.00032876,2]
[421488690,1777753889000,-790.13,0.00032876,2]
[421488666,1777753889000,-500.0,0.00032821,2]
[421488662,1777753889000,-12734.57,0.00032821,2]
[421488667,1777753889000,-578.91898621,0.00032821,2]
[421488668,1777753889000,-1268.37,0.00032821,2]
[421488669,1777753889000,-4574.26,0.00032821,2]
[421488665,1777753889000,-1881.31,0.00032821,2]
[421488673,1777753889000,-500.0,0.00032821,2]
[421488677,1777753889000,-1158.38,0.00032821,2]
[421488692,1777753889000,-182.99761732,0.00032876,2]
[421488675,1777753889000,-945.97,0.00032821,2]
[421488676,1777753889000,-500.0,0.00032821,2]
[421488678,1777753889000,-2129.76,0.00032821,2]
[421488684,1777753889000,-150.0,0.00032876,2]
[421488674,1777753889000,-1194.84,0.00032821,2]
[421488683,1777753889000,-157.92288025,0.00032876,2]
[421488682,1777753889000,-25000.0,0.00032868,10]
[421488685,1777753889000,-792.14,0.00032876,2]
[421488681,1777753889000,-500.0,0.00032821,2]
[421488680,1777753889000,-1479.18,0.00032821,2]
[421488687,1777753889000,-654.72,0.00032876,2]
[421488686,1777753889000,-501.89,0.00032876,2]
[421488688,1777753889000,-572.03,0.00032876,2]
[421488689,1777753889000,-502.28,0.00032876,2]
[421488701,1777753889000,-2470.13,0.00032876,2]
[421488679,1777753889000,-3095.72,0.00032821,2]
[421488691,1777753889000,-500.0,0.00032876,2]
[421488755,1777753890000,-677.59666893,0.00032876,2]
[421488761,1777753890000,-500.0,0.00032876,2]
[421488762,1777753890000,-500.0,0.00032876,2]
[421488757,1777753890000,-677.59666893,0.00032876,2]
[421488763,1777753890000,-500.0,0.00032876,2]
[421488754,1777753890000,-1479.18,0.00032876,2]
[421488759,1777753890000,-500.0,0.00032876,2]
[421488756,1777753890000,-677.59666893,0.00032876,2]
[421488752,1777753890000,-500.0,0.00032876,2]
[421488753,1777753890000,-184.96256251,0.00032876,2]
[421488771,1777753890000,-634.0,0.00032877,2]
[421488758,1777753890000,-504.4600324,0.00032876,2]
[421488769,1777753890000,-634.0,0.00032877,2]
[421488780,1777753890000,-634.0,0.00032877,2]
[421488772,1777753890000,-634.0,0.00032877,2]
[421488773,1777753890000,-634.0,0.00032877,2]
[421488766,1777753890000,-25000.0,0.00032877,10]
[421488768,1777753890000,-634.0,0.00032877,2]
[421488767,1777753890000,-634.0,0.00032877,2]
[421488764,1777753890000,-500.0,0.00032876,2]
[421488765,1777753890000,-275.34,0.00032877,2]
[421488774,1777753890000,-634.0,0.00032877,2]
[421488776,1777753890000,-634.0,0.00032877,2]
[421488778,1777753890000,-634.0,0.00032877,2]
[421488777,1777753890000,-634.0,0.00032877,2]
[421488779,1777753890000,-634.0,0.00032877,2]
[421488749,1777753890000,-589.21449472,0.00032876,2]
[421488770,1777753890000,-634.0,0.00032877,2]
[421488760,1777753890000,-500.0,0.00032876,2]
[421488722,1777753890000,-458.71684396,0.00032876,2]
[421488750,1777753890000,-589.21449472,0.00032876,2]
[421488723,1777753890000,-500.0,0.00032876,2]
[421488724,1777753890000,-500.0,0.00032876,2]
[421488730,1777753890000,-500.0,0.00032876,2]
[421488728,1777753890000,-500.0,0.00032876,2]
[421488727,1777753890000,-500.0,0.00032876,2]
[421488729,1777753890000,-500.0,0.00032876,2]
[421488726,1777753890000,-500.0,0.00032876,2]
[421488731,1777753890000,-500.0,0.00032876,2]
[421488733,1777753890000,-500.0,0.00032876,2]
[421488725,1777753890000,-500.0,0.00032876,2]
[421488732,1777753890000,-500.0,0.00032876,2]
[421488734,1777753890000,-500.0,0.00032876,2]
[421488751,1777753890000,-589.21449472,0.00032876,2]
[421488736,1777753890000,-500.0,0.00032876,2]
[421488746,1777753890000,-589.21449472,0.00032876,2]
[421488747,1777753890000,-589.21449472,0.00032876,2]
[421488737,1777753890000,-500.0,0.00032876,2]
[421488739,1777753890000,-500.0,0.00032876,2]
[421488741,1777753890000,-3095.72,0.00032876,2]
[421488740,1777753890000,-389.67755212,0.00032876,2]
[421488738,1777753890000,-515.55653326,0.00032876,2]
[421488742,1777753890000,-500.0,0.00032876,2]
[421488743,1777753890000,-318.32057261,0.00032876,2]
[421488745,1777753890000,-589.21449472,0.00032876,2]
[421488744,1777753890000,-589.21449472,0.00032876,2]
[421488748,1777753890000,-589.21449472,0.00032876,2]
[421488735,1777753890000,-500.0,0.00032876,2]
[421488775,1777753890000,-634.0,0.00032877,2]
[421488836,1777753890000,-500.0,0.00032931,2]
[421488782,1777753890000,-634.0,0.00032877,2]
[421488814,1777753890000,-2110.0,0.000329,2]
[421488813,1777753890000,-787.91,0.000329,2]
[421488818,1777753890000,-603.29,0.000329,120]
[421488815,1777753890000,-1638.11,0.000329,2]
[421488819,1777753890000,-220.86,0.000329,10]
[421488817,1777753890000,-4800.04,0.000329,7]
[421488816,1777753890000,-1638.11,0.000329,2]
[421488823,1777753890000,-792.14,0.00032931,2]
[421488832,1777753890000,-576.28,0.00032931,2]
[421488824,1777753890000,-501.89,0.00032931,2]
[421488828,1777753890000,-790.13,0.00032931,2]
[421488821,1777753890000,-500.0,0.00032931,2]
[421488822,1777753890000,-500.0,0.00032931,2]
[421488825,1777753890000,-654.72,0.00032931,2]
[421488829,1777753890000,-621.14509899,0.00032931,2]
[421488826,1777753890000,-572.03,0.00032931,2]
[421488830,1777753890000,-965.9,0.00032931,2]
[421488827,1777753890000,-502.28,0.00032931,2]
[421488831,1777753890000,-525.77,0.00032931,2]
[421488834,1777753890000,-521.04,0.00032931,2]
[421488839,1777753890000,-691.26,0.00032931,2]
[421488841,1777753890000,-556.28,0.00032931,2]
[421488840,1777753890000,-526.44,0.00032931,2]
[421488837,1777753890000,-885.9,0.00032931,2]
[421488784,1777753890000,-634.0,0.00032877,2]
[421488833,1777753890000,-1219.94,0.00032931,2]
[421488835,1777753890000,-756.97,0.00032931,2]
[421488811,1777753890000,-2232.13,0.000329,2]
[421488812,1777753890000,-787.91,0.000329,2]
[421488838,1777753890000,-2470.13,0.00032931,2]
[421488820,1777753890000,-2000.0,0.000329,12]
[421488809,1777753890000,-681.26,0.000329,2]
[421488785,1777753890000,-634.0,0.00032877,2]
[421488781,1777753890000,-634.0,0.00032877,2]
[421488786,1777753890000,-634.0,0.00032877,2]
[421488788,1777753890000,-634.0,0.00032877,2]
[421488789,1777753890000,-634.0,0.00032877,2]
[421488793,1777753890000,-787.8,0.000329,2]
[421488787,1777753890000,-634.0,0.00032877,2]
[421488795,1777753890000,-4050.78,0.000329,2]
[421488792,1777753890000,-787.8,0.000329,2]
[421488790,1777753890000,-636.28455234,0.00032877,2]
[421488794,1777753890000,-4050.78,0.000329,2]
[421488791,1777753890000,-151.21203547,0.000329,10]
[421488783,1777753890000,-634.0,0.00032877,2]
[421488798,1777753890000,-787.9,0.000329,2]
[421488796,1777753890000,-787.9,0.000329,2]
[421488802,1777753890000,-810.16,0.000329,2]
[421488804,1777753890000,-162.03,0.000329,2]
[421488803,1777753890000,-810.16,0.000329,2]
[421488805,1777753890000,-162.03,0.000329,2]
[421488808,1777753890000,-681.26,0.000329,2]
[421488806,1777753890000,-2103.01,0.000329,2]
[421488799,1777753890000,-787.9,0.000329,2]
[421488807,1777753890000,-2103.01,0.000329,2]
[421488810,1777753890000,-2232.13,0.000329,2]
[421488800,1777753890000,-2391.63,0.000329,2]
[421488797,1777753890000,-787.9,0.000329,2]
[421488801,1777753890000,-2391.63,0.000329,2]
[421488870,1777753891000,-525.77,0.00032986,2]
[421488879,1777753891000,-526.44,0.00032986,2]
[421488875,1777753891000,-500.0,0.00032986,2]
[421488873,1777753891000,-521.04,0.00032986,2]
[421488871,1777753891000,-576.28,0.00032986,2]
[421488877,1777753891000,-2470.13,0.00032986,2]
[421488882,1777753891000,-742.23,0.00032986,2]
[421488880,1777753891000,-556.28,0.00032986,2]
[421488876,1777753891000,-885.9,0.00032986,2]
[421488878,1777753891000,-691.26,0.00032986,2]
[421488872,1777753891000,-1219.94,0.00032986,2]
[421488883,1777753891000,-1724.05,0.00032986,2]
[421488881,1777753891000,-12734.57,0.00032986,2]
[421488884,1777753891000,-1881.31,0.00032986,2]
[421488885,1777753891000,-1268.37,0.00032986,2]
[421488888,1777753891000,-1318.85,0.00032986,2]
[421488887,1777753891000,-1220.75,0.00032986,2]
[421488886,1777753891000,-4574.26,0.00032986,2]
[421488889,1777753891000,-18702.6,0.00032986,2]
[421488891,1777753891000,-1194.84,0.00032986,2]
[421488892,1777753891000,-945.97,0.00032986,2]
[421488890,1777753891000,-500.0,0.00032986,2]
[421488866,1777753891000,-572.03,0.00032986,2]
[421488874,1777753891000,-756.97,0.00032986,2]
[421488859,1777753891000,-1479.18,0.00032931,2]
[421488853,1777753891000,-1194.84,0.00032931,2]
[421488863,1777753891000,-792.14,0.00032986,2]
[421488893,1777753891000,-1158.38,0.00032986,2]
[421488844,1777753891000,-1724.05,0.00032931,2]
[421488842,1777753891000,-12734.57,0.00032931,2]
[421488843,1777753891000,-742.23,0.00032931,2]
[421488847,1777753891000,-1268.37,0.00032931,2]
[421488846,1777753891000,-315.21403457,0.00032931,2]
[421488849,1777753891000,-1220.75,0.00032931,2]
[421488850,1777753891000,-1318.85,0.00032931,2]
[421488851,1777753891000,-18702.6,0.00032931,2]
[421488852,1777753891000,-500.0,0.00032931,2]
[421488845,1777753891000,-1881.31,0.00032931,2]
[421488865,1777753891000,-654.72,0.00032986,2]
[421488848,1777753891000,-4574.26,0.00032931,2]
[421488855,1777753891000,-497.19317843,0.00032931,2]
[421488857,1777753891000,-2129.76,0.00032931,2]
[421488867,1777753891000,-502.28,0.00032986,2]
[421488856,1777753891000,-1158.38,0.00032931,2]
[421488860,1777753891000,-580.98744131,0.00032931,2]
[421488868,1777753891000,-790.13,0.00032986,2]
[421488858,1777753891000,-3095.72,0.00032931,2]
[421488861,1777753891000,-3868.20883255,0.0003298,7]
[421488862,1777753891000,-438.1068964,0.00032986,2]
[421488869,1777753891000,-965.9,0.00032986,2]